[Event "CZE-ch U16 Open 2023"]
[Site "Teplice"]
[Date "2023.03.13"]
[Round "3.11"]
[White "Hozda, Max"]
[Black "Sigut, Ondrej"]
[Result "1/2-1/2"]
[ECO "D37"]
[WhiteElo "2067"]
[BlackElo "1804"]
[Annotator "TA"]
[PlyCount "113"]
[EventDate "2023.03.09"]
[EventType "swiss"]
[EventCountry "CZE"]
[SourceTitle "playchess.com"]
[Source "ChessBase"]
[SourceQuality "1"]
[TimeControl "40/5400+30:1800+30"]

{[%evp 21,113,24,20,20,31,0,0,0,0,0,0,0,6,0,43,-33,-19,-27,-19,-27,-22,-22,12,12,10,0,0,0,0,0,0,0,0,0,0,0,0,0,2,0,0,0,0,0,0,-172,-176,-144,0,-137,-136,-135,-122,-136,-31,-167,-152,-171,-180,-181,-186,-185,-185,-254,-254,-254,-254,-254,-246,-262,-262,-262,-262,-262,-246,-246,-246,-246,-246,-246,-246,-246,-246,-246,0,-246,-246,-246,-246,-246,0,-246,-246,-246]} 1. Nf3 {[%emt 0:00:11]} d5 {[%emt 0:01:32]} 2. c4 {[%emt 0:00:27]} e6 {[%emt 0:03:01]} 3. d4 {[%emt 0:01:11]} Nf6 {[%emt 0:00:48]} 4. Nc3 {[%emt 0:00:11]} Nbd7 {[%emt 0:02:28]} 5. cxd5 {[%emt 0:01:30]} Nxd5 {[%emt 0:00:48]} 6. e4 {[%emt 0:01:18]} Nxc3 {[%emt 0:00:46]} 7. bxc3 {[%emt 0:00:06]} c5 {[%emt 0:02:24]} 8. Bc4 {[%emt 0:07:31]} cxd4 {[%emt 0:01:58]} 9. cxd4 {[%emt 0:06:43]} Bb4+ {[%emt 0:01:29]} 10. Bd2 {[%emt 0:01:24]} Bxd2+ {[%emt 0:00:15]} 11. Qxd2 {[%emt 0:01:05]} O-O {[%emt 0:00:34]} 12. O-O {[%emt 0:00:39] D41: Queen's Gambit Declined: Semi-Tarrasch with 5 cxd5.} b6 {[%emt 0:01:57]} 13. Qe3 {[%emt 0:13:27]} Bb7 {[%emt 0:04:15]} 14. Nd2 {[%emt 0:02:54] The position is equal.} Nf6 {[%emt 0:02:20]} 15. f3 {[%emt 0:00:39] Wards off Ng4} Rc8 {[%emt 0:05:02]} 16. Rfd1 {[%emt 0:03:58]} Qd7 {[%emt 0:03:54]} 17. Bb3 {[%emt 0:05:44]} b5 {[%emt 0:12:15]} 18. e5 {[%emt 0:18:57]} (18. a4 $14) 18... Nd5 $15 {[%emt 0:07:32]} 19. Bxd5 {[%emt 0:00:12]} Bxd5 {[%emt 0:02:02]} 20. Ne4 {[%emt 0:00:33]} Bxe4 {[%emt 0:02:59]} 21. fxe4 {[%emt 0:00:12]} f6 {[%emt 0:04:12]} 22. exf6 {[%emt 0:03:11]} Rxf6 {[%emt 0:03:33]} 23. Rd2 {[%emt 0:07:11]} Qc7 {[%emt 0:05:49]} 24. Rad1 {[%emt 0:05:17]} Qb6 {[%emt 0:05:30]} 25. Kh1 {[%emt 0:06:45]} b4 {[%emt 0:04:58]} 26. Qe2 {[%emt 0:02:09]} a5 {[%emt 0:02:00]} 27. e5 {[%emt 0:02:55]} Rf7 {[%emt 0:01:08]} 28. d5 {[%emt 0:01:39]} exd5 {[%emt 0:00:19]} 29. Rxd5 {[%emt 0:00:52]} Re8 {[%emt 0:01:32]} 30. Rd6 {[%emt 0:01:29]} Qf2 {[%emt 0:03:31]} 31. Qc4 {[%emt 0:00:15] [#] Black must now prevent Rd8.} Qf4 {[%emt 0:00:30]} 32. R6d4 {[%emt 0:03:44]} Qxe5 {[%emt 0:03:59][%cal Oe5e1]} 33. Rf1 {[%emt 0:00:12] Inhibits Qe1.} (33. Rd8 $11 g6 34. Rxe8+ (34. R8d7 $2 {leads to mate.} Qe1+ {[%mdl 64] Back Rank} 35. Rxe1 Rxe1+) 34... Qxe8 35. h3) 33... Qc7 $19 {[%emt 0:04:05]} 34. Qd5 {[%emt 0:01:09]} Kf8 $40 {[%emt 0:01:54][%mdl 128] Black is up to no good.} (34... Kh8 $17 {[%cal Rf7f1]} 35. Rdd1 Rfe7) 35. Rfd1 {[%emt 0:01:35]} (35. Rdd1 $11 {was the only way to keep the balance.}) 35... Qe5 {[%emt 0:01:50][%cal Oe5e1] ( -> ...Qe1+!)} 36. h3 {[%emt 0:00:41]} Qxd5 {[%emt 0:00:38]} 37. Rxd5 $17 {[%emt 0:00:02][%mdl 4096] Endgame KRR-KRR} Ra8 {[%emt 0:00:18]} ({Black should play} 37... Ra7 $17 {Hoping for ...Re2.} 38. Rf1+ Kg8) 38. Kg1 {[%emt 0:00:26]} (38. Rb5 $1 $15) 38... Rb7 $19 {[%emt 0:00:41]} 39. Kf2 {[%emt 0:00:41]} a4 {[%emt 0:00:21][%cal Ba5a4,Ba4b3,Bb3b2][%mdl 32]} 40. Rb1 {[%emt 0:00:30]} b3 {[%emt 0:00:41]} 41. axb3 {[%emt 0:30:41]} axb3 {[%emt 0:30:53] Threatens to win with ...Ra2+.} 42. Rd3 {[%emt 0:00:00]} (42. Rd2 {might work better.}) 42... b2 {[%emt 0:00:00] ...Ra1 is the strong threat.} 43. Rd2 {[%emt 0:00:00] [#]} Rab8 $1 {[%emt 0:00:00]} 44. Re2 {[%emt 0:00:00]} Kf7 {[%emt 0:00:00]} 45. g3 {[%emt 0:00:00]} Rb3 {[%emt 0:00:00]} 46. Kg2 {[%emt 0:00:00]} R8b6 {[%emt 0:00:00]} 47. Kh2 {[%emt 0:00:00]} h5 {[%emt 0:00:00]} 48. h4 {[%emt 0:00:00]} Kg6 {[%emt 0:00:00]} 49. Rf2 {[%emt 0:00:00]} R6b4 {[%emt 0:00:00]} 50. Kh3 {[%emt 0:00:00]} Kh7 {[%emt 0:00:00]} 51. Rc2 {[%emt 0:00:00]} Kh6 {[%emt 0:00:00]} 52. Rf2 {[%emt 0:00:00]} Kh7 {[%emt 0:00:00]} 53. Rc2 $1 {[%emt 0:00:00]} Kg8 {[%emt 0:00:00]} 54. Rf2 {[%emt 0:00:00]} Rb6 {[%emt 0:00:00]} 55. Kh2 {[%emt 0:00:00]} R6b4 {[%emt 0:00:00]} 56. Kh3 $1 {[%emt 0:00:00]} g6 {[%emt 0:00:00]} 57. Kh2 {[%emt 0:00:00] Weighted Error Value: White=0.19 (very precise) /Black=0.23 (precise)} 1/2-1/2

[Event "CZE-ch U16 Open 2023"]
[Site "Teplice"]
[Date "2023.03.13"]
[Round "3.12"]
[White "Zezula, Jakub"]
[Black "Mrazek, Adam"]
[Result "1-0"]
[ECO "B06"]
[WhiteElo "1963"]
[BlackElo "1745"]
[Annotator "TA"]
[PlyCount "89"]
[EventDate "2023.03.09"]
[EventType "swiss"]
[EventCountry "CZE"]
[SourceTitle "playchess.com"]
[Source "ChessBase"]
[SourceQuality "1"]
[TimeControl "40/5400+30:1800+30"]

{[%evp 9,89,34,47,39,46,20,18,11,100,106,117,91,271,267,532,538,770,760,1479,1460,1989,1495,1391,1279,1215,517,470,368,367,350,337,327,334,299,428,394,453,428,621,432,601,491,488,488,463,437,425,378,412,402,387,267,507,476,991,981,1002,999,1584,1515,1516,0,1029,1020,1020,1034,960,897,973,895,2055,1920,29979,29980,29980,29981,29989,29990,29991,29992,29992,29993]} 1. e4 d6 2. d4 g6 3. Nc3 Bg7 4. Be3 a6 5. Nf3 {[%cal Bg1f3,Bf3g5,Bg5f7][%mdl 32]} b5 6. h4 {B06: Modern Defence.} Nf6 {[#]} 7. h5 $1 Nxh5 8. Ng5 {[#] Black must now prevent Qf3. The position is equal.} h6 $146 {[#]} (8... b4 $11 9. Bc4 e6) ({Predecessor:} 8... Nf6 9. e5 dxe5 10. dxe5 Qxd1+ 11. Rxd1 Ng4 12. Nd5 Bxe5 13. Bd4 O-O 14. Bxe5 Nxe5 15. Nxh7 {1-0 Efroimski,M (2442)-Chatalbashev,B (2529) Norway Chess op-A 2022 (5)}) 9. Nxf7 $1 $16 {White is more active.} Kxf7 10. e5 {Against Nf6} Bb7 {Dodges Qf3+} (10... Kg8 $16) 11. Bd3 $18 Qe8 $2 {[#]} (11... Nf4 {was worth a try.}) 12. Qg4 $1 Kg8 13. Bxg6 Qc8 14. Bf5 Qe8 15. Be6+ Kh7 16. Rxh5 {Black is weak on the light squares} Rf8 17. Bf5+ (17. Qh3 $142 {[%cal Rh5h6] Threatening mate with Rxh6+.} Qg6 18. Rg5 Qxg5 19. Bxg5) 17... Rxf5 18. Qxf5+ Qg6 19. Qxg6+ Kxg6 20. Rh4 Nd7 21. f4 h5 (21... Kf7 $142 22. a3 Rh8) 22. O-O-O b4 23. Ne2 a5 (23... Nb6 $142 24. Ng3 Rh8) 24. Rg1 c5 25. g4 Bf3 26. gxh5+ Kh7 {[#]} 27. h6 $1 Bh8 28. Kd2 Nb6 29. b3 {[%cal Bb2b3,Bb3c4][%mdl 32] Dodges Nc4+} ({Weaker is} 29. dxc5 Nc4+ 30. Kc1 (30. Kd3 Nxb2+ 31. Kd2 Nc4+ 32. Kd3 Nb2+ 33. Kd2 Nc4+ 34. Kd3 Nb2+ $11) 30... dxe5 $14) 29... c4 30. Rg5 ({But not} 30. f5 c3+ 31. Kd3 Bb7 32. exd6 exd6) 30... Nd5 $2 (30... a4 {keeps fighting.} 31. Rh3 axb3 32. axb3 (32. Rxf3 bxa2 33. Rf1 a1=Q $16) 32... Be4 33. exd6 exd6) 31. bxc4 Bxe2 (31... Nb6 $142 32. Kd3 Nxc4 33. Kxc4 Bxe2+ 34. Kd5 Ra6) 32. Kxe2 Nc3+ 33. Kd3 Nxa2 34. Rf5 {Hoping for Rg4.} Kg6 35. Rg5+ Kh7 36. exd6 exd6 37. Rb5 {And now Rb7+ would win.} Ra7 {Repels Rb7+} 38. Rhh5 a4 39. Ra5 Rxa5 40. Rxa5 {KRB-KBN} a3 41. f5 {White mates.} Bf6 42. Bd2 d5 43. c5 Kg8 44. c6 Bd8 45. Ra8 {Black got outplayed after the opening. A cool game by Zezula.   Weighted Error Value: White=0.57/Black=1.06} 1-0

[Event "CZE-ch U16 Open 2023"]
[Site "Teplice"]
[Date "2023.03.13"]
[Round "4.1"]
[White "Paseka, Matyas"]
[Black "Fizer, Marek"]
[Result "1-0"]
[ECO "B92"]
[WhiteElo "2082"]
[BlackElo "1929"]
[Annotator "TA"]
[PlyCount "151"]
[EventDate "2023.03.09"]
[EventType "swiss"]
[EventCountry "CZE"]
[SourceTitle "playchess.com"]
[Source "ChessBase"]
[SourceQuality "1"]
[TimeControl "40/5400+30:1800+30"]

{[%evp 16,151,15,18,18,3,18,19,27,0,0,-7,0,-20,-9,-27,-32,-71,-48,-83,-44,-55,0,0,0,0,0,0,42,36,109,89,124,120,113,89,88,88,104,73,64,66,66,72,81,77,58,29,29,0,0,0,8,6,14,0,34,36,69,69,129,129,129,68,126,121,117,129,129,124,225,208,233,149,218,201,209,139,126,136,888,698,1318,1131,29943,29946,29945,5510,4607,4584,3881,1298,4564,4549,29940,4134,3976,3675,3248,3029,2824,2768,11989,5077,2017,1760,29960,29962,29960,29961,29961,29962,29964,29965,29957,29958,29967,29968,29968,29968,29973,29962,29973,29973,29972,29965,29962,29962,29970,29971,29971,29972,29971,29973,29972,29972,12764,12370]} 1. e4 {[%emt 0:00:03]} c5 {[%emt 0:00:07]} 2. Nf3 {[%emt 0:00:07]} d6 {[%emt 0:00:07]} 3. d4 {[%emt 0:00:06]} cxd4 {[%emt 0:00:07]} 4. Nxd4 {[%emt 0:00:03]} Nf6 {[%emt 0:00:11]} 5. Nc3 {[%emt 0:00:07]} a6 {[%emt 0:00:09]} 6. Be2 {[%emt 0:00:12]} e5 {[%emt 0:00:43]} 7. Nb3 {[%emt 0:00:05]} Be7 {[%emt 0:00:40]} 8. O-O {[%emt 0:00:12]} O-O {[%emt 0:01:13]} 9. Re1 {[%emt 0:00:09]} Be6 {[%emt 0:01:11] B92: Sicilian Najdorf: 6 Be2.} 10. Bf3 {[%emt 0:00:07]} Nbd7 {[%emt 0:02:17]} 11. a4 {[%emt 0:00:21][%cal Ba2a4,Ba4a5][%mdl 32]} Nb6 {[%emt 0:09:36] The position is equal.} 12. a5 {[%emt 0:06:55]} Nc4 {[%emt 0:01:16]} 13. Qd3 {[%emt 0:01:06]} Rc8 {[%emt 0:04:26]} 14. Ra4 {[%emt 0:03:43] [#]} Qd7 $146 {[%emt 0:03:14][%cal Oc4b2] next ...Nxb2! is good for Black.} ({Predecessor:} 14... Qc7 15. Be2 b5 16. axb6 Nxb6 17. Ra1 d5 18. exd5 Nbxd5 19. Nxd5 Bxd5 20. Bd1 Bb7 {0-1 Hoolt,S (2240)-Buenermann,V (2303) Oberliga NRW 0910 2009 (7.2)}) 15. Ra2 {[%emt 0:09:06]} Bd8 {[%emt 0:10:26][%cal Oc4a5]} 16. Nd5 {[%emt 0:04:39]} Re8 {[%emt 0:08:56]} 17. Bd2 {[%emt 0:07:34]} Bxd5 {[%emt 0:15:52]} 18. exd5 {[%emt 0:00:08]} Qb5 {[%emt 0:00:50]} ({Black should try} 18... b5 $15) 19. Bc3 $11 {[%emt 0:07:55]} b6 {[%emt 0:06:50]} 20. axb6 {[%emt 0:03:46]} Bxb6 {[%emt 0:01:21]} 21. Raa1 {[%emt 0:04:20]} Ba7 {[%emt 0:10:01]} 22. Na5 {[%emt 0:13:41]} Nb6 {[%emt 0:09:56]} ({Black should play} 22... Nxa5 $14 23. Qxb5 {[%mdl 64] Remove Defender} axb5) 23. Nc6 {[%emt 0:00:25][%mdl 64] Discovered Attack} Qxd3 {[%emt 0:06:26]} 24. cxd3 {[%emt 0:00:06]} Bb8 {[%emt 0:00:34]} 25. Nxb8 {[%emt 0:02:48]} Rxb8 {[%emt 0:00:33]} 26. Rxa6 {[%emt 0:00:05]} Nfxd5 {[%emt 0:00:49]} 27. Bxd5 {[%emt 0:00:19]} Nxd5 {[%emt 0:00:14]} 28. Rxd6 {[%emt 0:00:15]} Nxc3 {[%emt 0:00:23]} 29. bxc3 $16 {[%emt 0:00:04][%mdl 4096] Endgame KRR-KRR} f6 {[%emt 0:01:28]} 30. g3 {[%emt 0:02:30]} Rb2 {[%emt 0:04:24]} 31. Rd7 {[%emt 0:07:10] Ra1 would be deadly.} Ra8 $1 {[%emt 0:00:36] Against Ra1} 32. Re3 {[%emt 0:04:11]} Raa2 {[%emt 0:00:21]} 33. Rf3 {[%emt 0:00:05]} Rc2 {[%emt 0:00:46]} 34. c4 {[%emt 0:00:38]} Rd2 {[%emt 0:00:47]} 35. Rd5 {[%emt 0:04:19]} Rac2 {[%emt 0:00:29]} 36. g4 {[%emt 0:01:25][%cal Og4g5]} Kf7 {[%emt 0:00:32]} 37. g5 {[%emt 0:03:25]} Ke6 {[%emt 0:00:24]} (37... Rc3 $14) 38. gxf6 $1 {[%emt 0:00:05]} gxf6 {[%emt 0:00:07]} 39. Ra5 {[%emt 0:00:08]} (39. Rc5 $1 $16) 39... e4 {[%emt 0:00:30]} 40. dxe4 {[%emt 0:01:03]} Rxc4 {[%emt 0:00:14]} 41. Ra6+ {[%emt 0:31:54]} Ke5 {[%emt 0:03:05]} 42. Raxf6 {[%emt 0:00:00]} ({Resist} 42. Rfxf6 Rxe4 43. Rf7 Rg4+ 44. Kf1 h5) 42... Rc7 {[%emt 0:19:03]} (42... Ra2 $16) 43. Rf8 $18 {[%emt 0:00:00] Black must now prevent Re8+.} Re7 {[%emt 0:05:08] Repels Re8} 44. Ra3 {[%emt 0:00:00]} Rg7+ {[%emt 0:01:18]} (44... Re2 $16 {was necessary.} 45. Ra4 Rxe4 46. f4+ Kd6 47. Rf6+ Kd5 48. Rf5+ Kd6 49. Ra6+ Kd7) 45. Kf1 {[%emt 0:00:00]} Rb2 {[%emt 0:02:48]} (45... Kxe4 $2 46. Re3+ Kd4 47. Rd8+ Kc4 48. Rxd2 $18) 46. Re8+ {[%emt 0:00:00]} Kf4 {[%emt 0:00:34]} 47. Rg3 {[%emt 0:02:21]} Rxg3 {[%emt 0:02:14][%mdl 8192] This move loses the game for Black.} (47... Rb1+ $16 48. Kg2 Rg6) 48. hxg3+ $16 {[%emt 0:00:05] KR-KR} (48. fxg3+ Ke3 $16) 48... Kf3 {[%emt 0:00:09][%cal Rb2b1]} 49. Rf8+ {[%emt 0:00:03]} Kxe4 {[%emt 0:00:08] [#]} 50. Rf7 $1 {[%emt 0:00:07]} h5 {[%emt 0:01:08]} 51. Rf4+ {[%emt 0:00:06]} (51. Kg2 $142 Rb5 52. Kh3 Ke5 53. f4+ Ke6 54. Rf8 Ke7 55. Ra8 Kf7 56. Ra6) 51... Kd3 $18 {[%emt 0:00:18]} 52. Kg2 {[%emt 0:03:42]} Rb5 {[%emt 0:00:37]} 53. Kf3 {[%emt 0:00:10]} (53. Rf8 $142 Ke4 54. f3+ Ke5 55. f4+ Ke6 56. Kh3) 53... Rg5 {[%emt 0:00:43]} 54. Rf8 {[%emt 0:00:34]} Kd4 {[%emt 0:00:31]} 55. Re8 {[%emt 0:00:09]} (55. Kg2 $142 Rb5 56. Kh3 Ke5 57. f4+ Ke4 58. Kh4 Rb3 59. Rg8 (59. Kxh5 Rxg3 60. Kh4 Rg7 $11) 59... Kf5 60. Kxh5) 55... Rf5+ {[%emt 0:00:15]} 56. Kg2 {[%emt 0:00:09] Intending Rh8 and mate.} Kd5 {[%emt 0:00:17]} 57. Re2 {[%emt 0:00:20] White threatens Kh3 and mate.} Kd4 {[%emt 0:00:36]} 58. f3 {[%emt 0:01:16]} Kd5 {[%emt 0:00:48] Against Re6} 59. Re4 {[%emt 0:03:27]} Kd6 {[%emt 0:00:31]} 60. Re3 {[%emt 0:02:55] Threatening mate with Kh3.} Kd5 {[%emt 0:00:38] [#]} 61. Kh3 $1 {[%emt 0:02:06]} Kd4 {[%emt 0:00:31]} 62. Ra3 {[%emt 0:00:02]} Rc5 {[%emt 0:00:20]} 63. Kh4 {[%emt 0:00:13]} Rb5 {[%emt 0:00:19]} 64. f4 {[%emt 0:01:21]} Ke4 {[%emt 0:00:28]} 65. Ra8 {[%emt 0:03:39]} Kf3 {[%emt 0:00:49]} 66. Rg8 {[%emt 0:02:10]} Rb1 {[%emt 0:00:36]} 67. Kxh5 {[%emt 0:00:47]} Rh1+ {[%emt 0:00:26]} 68. Kg5 {[%emt 0:02:08]} Kxg3 {[%emt 0:00:11]} 69. Ra8 {[%emt 0:00:07]} Kf3 {[%emt 0:00:29]} 70. Ra4 {[%emt 0:00:06]} Rg1+ {[%emt 0:00:39]} 71. Kf5 {[%emt 0:00:05]} Ke3 {[%emt 0:00:38]} 72. Ke5 {[%emt 0:00:04]} Rb1 {[%emt 0:00:36]} 73. Ra3+ {[%emt 0:00:10]} Ke2 {[%emt 0:00:10]} 74. f5 {[%emt 0:00:08]} Rb5+ {[%emt 0:00:14]} 75. Kf6 {[%emt 0:00:08]} Rb1 {[%emt 0:00:16]} 76. Kg7 {[%emt 0:00:10] Weighted Error Value: White=0.14 (very precise) /Black=0.59} 1-0

[Event "CZE-ch U16 Open 2023"]
[Site "Teplice"]
[Date "2023.03.13"]
[Round "4.2"]
[White "Seidl, Jan"]
[Black "Janous, Marek"]
[Result "1/2-1/2"]
[ECO "A06"]
[WhiteElo "2025"]
[BlackElo "2124"]
[Annotator "TA"]
[PlyCount "68"]
[EventDate "2023.03.09"]
[EventType "swiss"]
[EventCountry "CZE"]
[SourceTitle "playchess.com"]
[Source "ChessBase"]
[SourceQuality "1"]
[TimeControl "40/5400+30:1800+30"]

{[%evp 10,68,27,8,29,0,0,-68,-18,-18,-27,-24,-18,-42,23,0,3,24,22,-16,25,3,12,0,0,0,10,0,-2,0,37,43,71,45,74,68,151,99,99,110,106,72,62,60,75,25,27,27,28,25,26,15,50,0,0,0,0,0,0,0,0]} 1. Nf3 {[%emt 0:00:14]} d5 {[%emt 0:00:08]} 2. g3 {[%emt 0:00:15]} g6 {[%emt 0:00:08]} 3. d4 {[%emt 0:00:10]} Bg7 {[%emt 0:00:07]} 4. Bg2 {[%emt 0:00:03]} c6 {[%emt 0:00:19]} 5. O-O {[%emt 0:00:15]} Nf6 {[%emt 0:00:06]} 6. c4 {[%emt 0:00:43]} dxc4 {[%emt 0:00:08] D73: Fianchetto Grünfeld: 5 Nf3 .} 7. a4 {[%emt 0:00:37]} Ne4 {[%emt 0:00:15]} 8. Ne5 {[%emt 0:01:13]} (8. Na3 $11) 8... Nd6 {[%emt 0:02:09]} (8... Nc5 $15) 9. Na3 $11 {[%emt 0:00:42]} O-O {[%emt 0:00:45]} 10. e3 {[%emt 0:04:47]} Be6 {[%emt 0:02:48][%cal Bc8e6,Be6f5,Bf5d3][%mdl 32] [#]} 11. Qc2 $146 {[%emt 0:00:48][%cal Ra3c4]} ({Predecessor:} 11. Qe2 Na6 12. Naxc4 Nxc4 13. Nxc4 Bd5 14. Rd1 Bxg2 15. Kxg2 Re8 16. b3 c5 17. Qf3 cxd4 18. exd4 {1-0 Jumabayev,R (2617)-Xiong,J (2691) Chess.com Rapid Wk21 Swiss 2022 (1)}) 11... Nd7 {[%emt 0:03:21]} (11... Na6 $15) 12. Naxc4 {[%emt 0:02:42]} Nxe5 {[%emt 0:04:22]} 13. Nxe5 {[%emt 0:00:10]} Rc8 {[%emt 0:08:14][%cal Oc6c5]} 14. b4 {[%emt 0:08:35]} Qb6 {[%emt 0:20:50]} 15. Bd2 {[%emt 0:08:00]} Bf5 {[%emt 0:11:51]} (15... Bxe5 {simplifies} 16. dxe5 Nc4 17. Bc3 Qc7) 16. Qb3 {[%emt 0:07:05]} c5 {[%emt 0:18:05]} 17. Bc3 {[%emt 0:05:24]} ({Of course not} 17. dxc5 Rxc5 18. Nd3 (18. a5 Qb5 $17) 18... Be6 $17) (17. a5 Qb5 $15) 17... c4 {[%emt 0:12:51]} 18. Qb2 {[%emt 0:01:48]} f6 {[%emt 0:03:06]} 19. Nf3 {[%emt 0:02:45]} Bd3 {[%emt 0:03:33]} 20. Rfd1 {[%emt 0:00:45]} Ne4 {[%emt 0:00:22]} 21. Ne1 {[%emt 0:01:13] Black must now prevent Rxd3.} Nxc3 {[%emt 0:01:45]} 22. Qxc3 {[%emt 0:00:07]} e5 {[%emt 0:00:35] [#]} (22... Be2 $14) 23. Nxd3 {[%emt 0:02:33]} ({Better is} 23. a5 $1 {[%cal Ra5b6]} Qb5 24. Nxd3 cxd3 25. Qxd3 Qxd3 26. Rxd3) 23... cxd3 {[%emt 0:00:49]} 24. Qxd3 {[%emt 0:00:58]} (24. Qb3+ {seems wilder.} Kh8 25. dxe5 fxe5 26. Ra2) 24... exd4 {[%emt 0:00:13] Black is weak on the light squares} (24... Qxb4 $2 25. dxe5 fxe5 26. Rdb1 $18) 25. Qxd4 {[%emt 0:00:19]} Qxd4 {[%emt 0:00:49]} 26. exd4 {[%emt 0:00:35]} ({Worse is} 26. Rxd4 f5 27. Bxb7 (27. Bd5+ Kh8 $17) 27... Bxd4 28. exd4 Rb8 29. Bd5+ Kg7 $17) 26... Rfd8 {[%emt 0:00:28]} 27. d5 {[%emt 0:01:18]} (27. Bxb7 $16 Rb8 28. Bc6) 27... Bf8 {[%emt 0:00:35]} 28. b5 {[%emt 0:00:19][%cal Od5d6]} Bd6 {[%emt 0:00:43]} 29. Rac1 {[%emt 0:00:04]} Kf7 {[%emt 0:00:46]} 30. a5 {[%emt 0:00:55]} Rc5 {[%emt 0:01:54]} 31. b6 {[%emt 0:05:53]} (31. Rxc5 $14 Bxc5 32. Kf1) 31... axb6 {[%emt 0:01:54] The position is equal.} 32. axb6 {[%emt 0:00:05]} Rdc8 {[%emt 0:00:15]} 33. Rb1 {[%emt 0:00:43]} Ra8 {[%emt 0:01:17]} 34. Bh3 {[%emt 0:00:25]} f5 {[%emt 0:00:16] Weighted Error Value: White=0.18 (very precise) /Black=0.16 (very precise)} 1/2-1/2

[Event "CZE-ch U16 Open 2023"]
[Site "Teplice"]
[Date "2023.03.13"]
[Round "4.3"]
[White "Simunek, Jakub Simon"]
[Black "Prazak, Daniel"]
[Result "0-1"]
[ECO "B40"]
[WhiteElo "1970"]
[BlackElo "2064"]
[Annotator "TA"]
[PlyCount "66"]
[EventDate "2023.03.09"]
[EventType "swiss"]
[EventCountry "CZE"]
[SourceTitle "playchess.com"]
[Source "ChessBase"]
[SourceQuality "1"]
[TimeControl "40/5400+30:1800+30"]

{[%evp 9,66,0,23,20,23,8,9,0,0,0,0,0,30,-16,-5,-18,20,10,8,0,0,-7,-6,-20,-25,-106,-50,-108,-61,-114,-101,-155,-79,-161,-155,-136,-153,-153,-121,-182,-191,-276,-258,-437,-440,-424,-438,-428,-428,-415,-395,-693,-683,-660,-624,-29996,-29997,-29997,-29998]} 1. e4 {[%emt 0:01:02]} c5 {[%emt 0:00:06]} 2. Nf3 {[%emt 0:00:22]} e6 {[%emt 0:00:09]} 3. g3 {[%emt 0:00:49]} Nc6 {[%emt 0:00:08]} 4. Bg2 {[%emt 0:00:14]} Nf6 {[%emt 0:00:07]} 5. d3 {[%emt 0:00:42]} a6 {[%emt 0:00:56]} 6. O-O {[%emt 0:05:58] B40: Sicilian: 2...e6, Unusual lines.} d6 {[%emt 0:00:32]} 7. c3 {[%emt 0:01:22]} Be7 {[%emt 0:01:13]} 8. Qe2 {[%emt 0:01:23] The position is equal.} O-O {[%emt 0:02:13]} 9. d4 {[%emt 0:05:17] [#]} d5 $146 {[%emt 0:00:53]} ({Predecessor:} 9... Re8 10. e5 Nd7 11. h4 d5 12. Nbd2 Nf8 13. Rd1 cxd4 14. cxd4 Bd7 15. Nf1 Rc8 {1-0 Acosta,M (1942)-Koryabkin,V (2072) Wch Seniors 65 24th 2014 (11)}) 10. e5 {[%emt 0:13:20]} Ne4 {[%emt 0:00:41]} 11. Nbd2 {[%emt 0:00:36]} (11. Rd1 $142) 11... Nxd2 $1 $11 {[%emt 0:02:01]} 12. Bxd2 {[%emt 0:00:38]} Bd7 {[%emt 0:01:22]} 13. h4 {[%emt 0:03:49]} Rc8 {[%emt 0:03:37]} 14. Rfd1 {[%emt 0:14:16]} cxd4 {[%emt 0:08:09]} 15. cxd4 {[%emt 0:01:47]} Qb6 {[%emt 0:01:08][%csl LRb2,LRd4]} 16. Bg5 {[%emt 0:05:57]} Bxg5 {[%emt 0:03:59]} 17. Nxg5 {[%emt 0:00:08]} (17. hxg5 $11 Rc7 18. Bf1) 17... h6 {[%emt 0:04:02]} (17... Nxd4 $17 18. Qe3 Rc4) 18. Nh3 {[%emt 0:01:11]} (18. Nf3 $15) 18... Ne7 {[%emt 0:03:55]} ({Better is} 18... Nxd4 $17 19. Qe3 Rc4) 19. Nf4 {[%emt 0:07:33]} (19. b3 $15) 19... Rc4 $36 {[%emt 0:04:53][%mdl 2048] Keeping White busy.} 20. Rac1 {[%emt 0:05:55]} (20. Bxd5 $142 exd5 21. Nxd5 {[%mdl 64] Remove Defender} Nxd5 22. Qxc4) 20... Rfc8 {[%emt 0:04:42]} (20... Rxc1 $142 21. Rxc1 Qxd4) 21. Qd2 {[%emt 0:05:50]} (21. Rxc4 $17 Rxc4 22. Bxd5 {[%mdl 64] Remove Defender} exd5 23. Nxd5 {[%mdl 64] Remove Defender} Nxd5 24. Qxc4) 21... Rxc1 $19 {[%emt 0:04:20]} 22. Rxc1 {[%emt 0:00:06]} Rxc1+ {[%emt 0:00:13]} 23. Qxc1 {[%emt 0:00:04]} Nc6 {[%emt 0:00:20]} ({Resist} 23... Qxd4 24. Qc7 Qd1+ 25. Kh2 $16) 24. Ne2 {[%emt 0:06:46]} (24. Nd3 $17) 24... Nxd4 {[%emt 0:00:28]} 25. Nxd4 {[%emt 0:00:07]} (25. Nf4 {was worth a try.}) 25... Qxd4 {[%emt 0:00:11][%mdl 4096] Endgame KQB-KQB} 26. Qc7 $2 {[%emt 0:00:05] [#]} (26. Qc3 Qd1+ 27. Kh2) 26... Bc6 $1 {[%emt 0:00:41]} 27. Qd8+ {[%emt 0:00:30]} Kh7 {[%emt 0:00:12]} 28. Qc7 {[%emt 0:00:08]} Qxb2 {[%emt 0:00:28]} 29. Qxf7 {[%emt 0:00:22]} Qxe5 {[%emt 0:00:08]} 30. Bh3 $2 {[%emt 0:01:34]} (30. g4) 30... Qe1+ {[%emt 0:00:06]} 31. Kh2 {[%emt 0:00:05]} d4 {[%emt 0:00:18][%csl Gc6][%cal Re1h1] [#]} 32. g4 {[%emt 0:01:33]} Qh1+ {[%emt 0:00:19]} 33. Kg3 {[%emt 0:00:03]} Qg1+ {[%emt 0:00:11] Weighted Error Value: White=0.67/Black=0.13 (very precise)} 0-1